fUSD/lending_fUSD_20240718
["ID","MTS","AMOUNT","RATE_DAILY","PERIOD"]
[332508607,1721280075579,-268.42518862,0.00042717,30]
[332508608,1721280075602,-150.0,0.00042723,30]
[332508609,1721280075629,-1400.0,0.00042739,30]
[332508610,1721280075654,-500.0,0.00042739,30]
[332508611,1721280075677,-2200.0,0.00042739,30]
[332508612,1721280075700,-500.0,0.00042739,30]
[332508613,1721280075724,-150.0,0.00042744,30]
[332508614,1721280075748,-268.42518862,0.00042764,30]
[332508615,1721280075771,-150.0,0.00042771,30]
[332508616,1721280075794,-150.0,0.0004278,30]
[332508617,1721280075818,-1012488.97713301,0.000428,60]
[332508618,1721280075841,-268.42518862,0.00042811,30]
[332508619,1721280075866,-150.0,0.00042819,30]
[332508620,1721280075890,-150.0,0.00042826,30]
[332508621,1721280075916,-150.0,0.00042838,30]
[332508622,1721280075940,-150.0,0.00042849,30]
[332508623,1721280075965,-268.42518862,0.00042858,30]
[332508624,1721280075991,-150.0,0.00042894,30]
[332508625,1721280076016,-150.0,0.00042895,30]
[332508626,1721280076039,-1962.07461266,0.000429,120]
[332508627,1721280076064,-268.42518862,0.00042905,30]
[332508628,1721280076088,-150.0,0.00042927,30]
[332508629,1721280076114,-150.0,0.0004294,30]
[332508630,1721280076139,-268.42518862,0.00042953,30]
[332508631,1721280076162,-150.0,0.00042953,30]
[332508632,1721280076185,-150.0,0.00042953,30]
[332508633,1721280076210,-150.0,0.00042969,30]
[332508634,1721280076234,-268.42518862,0.00043,30]
[332508635,1721280076258,-735.0,0.00043,120]
[332508636,1721280076281,-600.0,0.00043,120]
[332508637,1721280076304,-1518.46699301,0.00043,30]
[332508638,1721280076328,-171.87653341,0.00043,120]
[332508639,1721280076352,-886.88322041,0.00043,30]
[332508640,1721280076377,-1000.0,0.00043,30]
[332508641,1721280076401,-2018.43483362,0.00043,120]
[332508642,1721280076426,-1374.459503,0.00043,60]
[332508643,1721280076449,-50000.0,0.00043,30]
[332508644,1721280076473,-150.0,0.00043004,30]
[332508645,1721280076496,-150.0,0.0004301,30]
[332508646,1721280076525,-150.0,0.00043044,30]
[332508647,1721280076551,-268.42518862,0.00043047,30]
[332508648,1721280076578,-150.0,0.00043053,30]
[332508649,1721280076602,-150.0,0.00043068,30]
[332508650,1721280076628,-150.0,0.00043082,30]
[332508651,1721280076653,-150.0,0.00043082,30]
[332508652,1721280076679,-2410.95725,0.00043088,30]
[332508653,1721280076704,-268.42518862,0.00043094,30]
[332508654,1721280076729,-150.0,0.00043119,30]
[332508655,1721280076754,-150.0,0.00043125,30]
[332508656,1721280076780,-268.42518862,0.00043141,30]
[332508657,1721280076805,-150.0,0.0004316,30]
[332508658,1721280076829,-150.0,0.00043167,30]
[332508659,1721280076854,-150.0,0.00043183,30]
[332508660,1721280076879,-268.42518862,0.00043188,30]
[332508661,1721280076906,-150.0,0.00043195,30]
[332508662,1721280076930,-150.0,0.00043211,30]
[332508663,1721280076956,-268.42518862,0.00043235,30]
[332508664,1721280076981,-150.0,0.00043237,30]
[332508665,1721280077007,-150.0,0.0004324,30]
[332508666,1721280077032,-150.0,0.0004327,30]
[332508667,1721280077058,-150.0,0.00043281,30]
[332508668,1721280077084,-268.42518862,0.00043282,30]
[332508669,1721280077109,-1400.0,0.00043287,30]
[332508670,1721280077134,-500.0,0.00043287,30]
[332508671,1721280077159,-2200.0,0.00043287,30]
[332508672,1721280077183,-500.0,0.00043287,30]
[332508673,1721280077207,-151.0,0.00043288,120]
[332508674,1721280077232,-2410.95725,0.00043288,30]
[332508675,1721280077256,-150.0,0.00043298,30]
[332508676,1721280077280,-150.0,0.00043315,30]
[332508677,1721280077304,-268.42518862,0.00043329,30]
[332508678,1721280077328,-150.0,0.00043345,30]
[332508679,1721280077352,-150.0,0.00043355,30]
[332508680,1721280077378,-268.42518862,0.00043376,30]
[332508681,1721280077648,-335.0,0.0004338,30]
[332508682,1721280077673,-200.0,0.0004338,30]
[332508683,1721280077697,-150.0,0.00043392,30]
[332508684,1721280077719,-150.0,0.00043394,30]
[332508685,1721280077743,-214.0,0.0004341,30]
[332508686,1721280077766,-150.0,0.00043413,30]
[332508687,1721280077789,-150.0,0.0004342,30]
[332508688,1721280077812,-268.42518862,0.00043423,30]
[332508689,1721280077836,-2343.7963676,0.00043449,40]
[332508690,1721280077860,-268.42518862,0.0004347,30]
[332508691,1721280077884,-150.0,0.0004347,30]
[332508692,1721280077912,-150.0,0.0004347,30]
[332508693,1721280077935,-150.0,0.0004347,30]
[332508694,1721280077961,-150.0,0.0004347,30]
[332508695,1721280077987,-2410.95725,0.00043488,30]
[332508696,1721280078011,-150.0,0.00043495,30]
[332508697,1721280078034,-150.0,0.00043508,30]
[332508698,1721280078059,-268.42518862,0.00043517,30]
[332508699,1721280078084,-150.0,0.00043528,30]
[332508700,1721280078108,-150.0,0.00043548,30]
[332508701,1721280078134,-150.0,0.0004356,30]
[332508702,1721280078159,-9682.6573711,0.0004356,60]
[332508703,1721280078183,-268.42518862,0.00043564,30]
[332508704,1721280078207,-150.0,0.0004357,30]
[332508705,1721280078231,-150.0,0.00043585,30]
[332508706,1721280078254,-3185.53024646,0.000436,120]
[332508707,1721280078277,-268.42518862,0.00043611,30]
[332508708,1721280078302,-150.0,0.00043621,30]
[332508709,1721280078326,-150.0,0.00043625,30]
[332508710,1721280078349,-150.0,0.00043643,30]
[332508711,1721280078374,-150.0,0.00043645,30]
[332508712,1721280078402,-268.42518862,0.00043658,30]
[332508713,1721280078426,-2410.95725,0.00043688,30]
[332508714,1721280078451,-577.83240935,0.000437,60]
[332508715,1721280078474,-150.0,0.000437,30]
[332508716,1721280078497,-150.0,0.00043703,30]
[332508717,1721280078521,-268.42518862,0.00043705,30]
[332508718,1721280078547,-150.0,0.0004372,30]
[332508719,1721280078573,-150.0,0.00043729,30]
[332508720,1721280078595,-150.0,0.00043735,30]
[332508721,1721280078619,-268.42518862,0.00043752,30]
[332508722,1721280078643,-150.0,0.00043758,30]
[332508723,1721280078667,-150.0,0.00043781,30]
[332508724,1721280078693,-150.0,0.00043796,30]
[332508725,1721280078719,-268.42518862,0.00043799,30]
[332508726,1721280078742,-465.39564077,0.000438,30]
[332508727,1721280078766,-539.26832065,0.000438,111]
[332508728,1721280078789,-150.0,0.00043815,30]
[332508729,1721280078812,-1400.0,0.00043835,30]
[332508730,1721280078835,-500.0,0.00043835,30]
[332508731,1721280078859,-2200.0,0.00043835,30]
[332508732,1721280078884,-500.0,0.00043835,30]
[332508733,1721280078911,-3000.0,0.00043835,120]
[332508734,1721280078935,-888.0,0.00043835,30]
[332508735,1721280078960,-500.0,0.00043835,120]
[332508736,1721280078984,-500.0,0.00043835,120]
[332508737,1721280079009,-500.0,0.00043835,120]
[332508738,1721280079033,-500.0,0.00043835,120]
[332508739,1721280079057,-500.0,0.00043835,120]
[332508740,1721280079081,-500.0,0.00043835,120]
[332508741,1721280079104,-500.0,0.00043835,120]
[332508742,1721280079129,-500.0,0.00043835,120]
[332508743,1721280079152,-500.0,0.00043835,120]
[332508744,1721280079176,-500.0,0.00043835,120]
[332508745,1721280079199,-258.97631242,0.00043835,120]
[332508746,1721280079222,-500.0,0.00043835,30]
[332508747,1721280079246,-1527.99,0.00043835,30]
[332508748,1721280079268,-500.0,0.00043835,30]
[332508749,1721280079292,-268.42518862,0.00043846,30]
[332508750,1721280079315,-150.0,0.00043849,30]
[332508751,1721280079339,-150.0,0.00043858,30]
[332508752,1721280079362,-150.0,0.00043858,30]
[332508753,1721280079387,-150.0,0.00043871,30]
[332508754,1721280079412,-150.0,0.00043873,30]
[332508755,1721280079435,-156.8858,0.00043888,30]
[332508756,1721280079458,-268.42518862,0.00043893,30]
[332508757,1721280079481,-10000.0,0.000439,120]
[332508758,1721280079504,-816.0,0.00043906,120]
[332508759,1721280079528,-150.0,0.0004393,30]
[332508760,1721280079552,-150.0,0.00043936,30]
[332508761,1721280079577,-268.42518862,0.0004394,30]
[332508762,1721280079601,-151.0,0.00043945,120]
[332508763,1721280079627,-150.0,0.00043946,30]
[332508764,1721280079650,-150.0,0.00043962,30]
[332508765,1721280079674,-888.0,0.00043972,30]
[332508766,1721280079698,-150.0,0.00043988,30]
[332508767,1721280079721,-150.0,0.00043988,30]
[332508768,1721280079744,-268.42518862,0.00043988,30]
[332508769,1721280079769,-1000000.0,0.00044,90]
[332508770,1721280079792,-673679.5252151,0.00044,90]
[332508771,1721280089466,-326320.4747849,0.00044,90]
[332508772,1721280089491,-589.22483576,0.00044,30]
[332508773,1721280089514,-2267.45289808,0.00044,120]
[332508774,1721280089538,-750.0,0.00044,120]
[332508775,1721280089576,-2000.0,0.00044,120]
[332508776,1721280089604,-637.617621,0.00044,57]
[332508777,1721280089631,-240.633,0.00044,30]
[332508778,1721280089657,-150.0,0.00044013,30]
[332508779,1721280089684,-150.0,0.00044021,30]
[332508780,1721280089710,-151.0,0.00044027,120]
[332508781,1721280089734,-268.42518862,0.00044035,30]
[332508782,1721280089780,-150.0,0.00044045,30]
[332508783,1721280089832,-150.0,0.00044076,30]
[332508784,1721280089887,-268.42518862,0.00044082,30]
[332508785,1721280089935,-2410.95725,0.00044088,30]
[332508786,1721280089960,-150.0,0.00044091,30]
[332508787,1721280089985,-150.0,0.00044096,30]
[332508788,1721280090011,-150.0,0.00044103,30]
[332508789,1721280090035,-888.0,0.00044109,30]
[332508790,1721280090060,-1527.99,0.00044109,30]
[332508791,1721280090085,-500.0,0.00044109,30]
[332508792,1721280090109,-268.42518862,0.00044129,30]
[332508793,1721280090134,-150.0,0.0004416,30]
[332508794,1721280090158,-150.0,0.00044169,30]
[332508795,1721280090182,-150.0,0.00044171,30]
[332508796,1721280090206,-268.42518862,0.00044176,30]
[332508797,1721280090230,-150.0,0.00044189,30]
[332508798,1721280090254,-1098.17265277,0.000442,120]
[332508799,1721280090278,-1893.76571228,0.000442,120]
[332508800,1721280090301,-1893.76571225,0.000442,120]
[332508801,1721280090325,-1893.76571225,0.000442,120]
[332508802,1721280090349,-1893.76571225,0.000442,120]
[332508803,1721280090376,-1893.76571225,0.000442,120]
[332508804,1721280090401,-150.0,0.00044218,30]
[332508805,1721280090426,-268.42518862,0.00044223,30]
[332508806,1721280090450,-888.0,0.00044246,30]
[332508807,1721280090474,-793.0,0.00044246,30]
[332508808,1721280090499,-150.0,0.00044246,30]
[332508809,1721280090522,-150.0,0.00044246,30]
[332508810,1721280090546,-150.0,0.00044246,30]
[332508811,1721280090571,-150.0,0.00044246,30]
[332508812,1721280090595,-150.0,0.00044246,30]
[332508813,1721280090620,-268.42518862,0.0004427,30]
[332508814,1721280090645,-150.0,0.00044275,30]
[332508815,1721280090670,-2410.95725,0.00044288,30]
[332508816,1721280090694,-150.0,0.00044303,30]
[332508817,1721280090718,-268.42518862,0.00044317,30]
[332508818,1721280090742,-150.0,0.00044321,30]
[332508819,1721280090766,-150.0,0.00044324,30]
[332508820,1721280090790,-150.0,0.00044333,30]
[332508821,1721280090813,-268.42518862,0.00044364,30]
[332508822,1721280090837,-1400.0,0.00044383,30]
[332508823,1721280090860,-500.0,0.00044383,30]
[332508824,1721280090884,-2200.0,0.00044383,30]
[332508825,1721280090909,-602.8701421,0.00044383,30]
[332508826,1721280090933,-3000.0,0.00044383,120]
[332508827,1721280090958,-888.0,0.00044383,30]
[332508828,1721280090984,-1527.99,0.00044383,30]
[332508829,1721280091008,-500.0,0.00044383,30]
[332508830,1721280091032,-1104.19,0.00044384,120]
[332508831,1721280091056,-150.0,0.0004439,30]
[332508832,1721280091080,-150.0,0.00044396,30]
[332508833,1721280091104,-150.0,0.00044402,30]
[332508834,1721280091129,-268.42518862,0.00044411,30]
[332508835,1721280091154,-150.0,0.00044417,30]
[332508836,1721280091178,-150.0,0.00044448,30]
[332508837,1721280091203,-268.42518862,0.00044458,30]
[332508838,1721280091228,-150.0,0.00044472,30]
[332508839,1721280091252,-150.0,0.00044479,30]
[332508840,1721280091277,-2410.95725,0.00044488,30]
[332508841,1721280091301,-2000.0,0.000445,120]
[332508842,1721280091325,-268.42518862,0.00044505,30]
[332508843,1721280091349,-150.0,0.00044505,30]
[332508844,1721280091373,-150.0,0.00044505,30]
[332508845,1721280091400,-888.0,0.0004452,30]
[332508846,1721280091426,-150.0,0.0004453,30]
[332508847,1721280091450,-150.0,0.00044547,30]
[332508848,1721280091475,-268.42518862,0.00044552,30]
[332508849,1721280091499,-150.0,0.00044557,30]
[332508850,1721280091523,-150.0,0.00044563,30]
[332508851,1721280091548,-268.42518862,0.00044599,30]
[332508852,1721280091574,-151.0,0.00044603,120]
[332508853,1721280091597,-150.0,0.0004462,30]
[332508854,1721280091621,-150.0,0.00044622,30]
[332508855,1721280091646,-150.0,0.00044634,30]
[332508856,1721280091670,-150.0,0.00044634,30]
[332508857,1721280091694,-150.0,0.00044644,30]
[332508858,1721280091718,-268.42518862,0.00044646,30]
[332508859,1721280091742,-888.0,0.00044657,30]
[332508860,1721280092025,-1527.99,0.00044657,30]
[332508861,1721280092050,-609.3037362,0.00044657,30]
[332508862,1721280092074,-150.0,0.00044678,30]
[332508863,1721280092099,-2410.95725,0.00044688,30]
[332508864,1721280092123,-268.42518862,0.00044693,30]
[332508865,1721280092149,-150.0,0.00044697,30]
[332508866,1721280092173,-159.86969017,0.00044698,90]
[332508867,1721280092198,-150.0,0.00044712,30]
[332508868,1721280092223,-150.0,0.00044735,30]
[332508869,1721280092248,-268.42518862,0.0004474,30]
[332508870,1721280092273,-150.0,0.00044757,30]
[332508871,1721280092298,-150.0,0.00044764,30]
[332508872,1721280092327,-150.0,0.00044772,30]
[332508873,1721280092352,-268.42518862,0.00044787,30]
[332508874,1721280092377,-150.0,0.0004479,30]
[332508875,1721280092401,-150.0,0.00044793,30]
[332508876,1721280092427,-888.0,0.00044794,30]
[332508877,1721280092452,-268.42518862,0.00044834,30]
[332508878,1721280092477,-150.0,0.00044847,30]
[332508879,1721280092502,-150.0,0.0004485,30]
[332508880,1721280092527,-150.0,0.00044867,30]
[332508881,1721280092551,-150.0,0.00044871,30]
[332508882,1721280092578,-268.42518862,0.00044881,30]
[332508883,1721280092603,-2016.0,0.000449,30]
[332508884,1721280092628,-150.0,0.00044908,30]
[332508885,1721280092653,-150.0,0.00044922,30]
[332508886,1721280092679,-268.42518862,0.00044928,30]
[332508887,1721280092705,-1400.0,0.00044931,30]
[332508888,1721280092729,-504.15456086,0.00044931,30]
[332508889,1721280092753,-846.26068226,0.00044931,30]
[332508890,1721280092778,-2811.79166216,0.00044931,120]
[332508891,1721280092803,-888.0,0.00044931,30]
[332508892,1721280092828,-1527.99,0.00044931,30]
[332508893,1721280092853,-150.0,0.00044945,30]
[332508894,1721280092878,-150.0,0.00044965,30]
[332508895,1721280092907,-268.42518862,0.00044975,30]
[332508896,1721280092933,-450.0,0.0004498,30]
[332508897,1721280092962,-335.0,0.0004498,30]
[332508898,1721280092987,-200.0,0.0004498,30]
[332508899,1721280093012,-200.0,0.0004498,30]
[332508900,1721280093038,-150.0,0.00044985,30]
[332508901,1721280093063,-214.0,0.0004499,30]
[332508902,1721280093089,-150.0,0.00044997,30]
[332508903,1721280093113,-200.00307892,0.00045,120]
[332508904,1721280093139,-150.0,0.00045,85]
[332508905,1721280093163,-1492.46536721,0.00045,90]
[332508906,1721280093188,-569.91556937,0.00045,120]
[332508907,1721280093213,-186.68104164,0.00045,30]
[332508908,1721280093237,-1211.91278846,0.00045,120]
[332508909,1721280093263,-2848.54114804,0.00045,120]
[332508910,1721280093289,-658.06951289,0.00045,35]
[332508911,1721280093315,-880.28259119,0.00045,120]
[332508912,1721280093339,-257.31236447,0.00045,120]
[332508913,1721280093364,-2042.87751586,0.00045,30]
[332508914,1721280093392,-862.22362142,0.00045,60]
[332508915,1721280093419,-1481.98193567,0.00045,120]
[332508916,1721280093445,-757.27345714,0.00045,120]
[332508917,1721280093471,-1240.323,0.00045,120]
[332508918,1721280093497,-2360.0,0.00045,120]
[332508919,1721280093523,-2500.0,0.00045,120]
[332508920,1721280093548,-1014.5717949,0.00045,120]
[332508921,1721280093576,-3031.71491437,0.00045,120]
[332508922,1721280093602,-24221.94541692,0.00045,60]
[332508923,1721280093635,-2000.0,0.00045,60]
[332508924,1721280093664,-391.04124665,0.00045,120]
[332508925,1721280093691,-2029.22,0.00045,48]
[332508926,1721280093719,-599.67842216,0.00045,120]
[332508927,1721280093746,-251.71598223,0.00045,120]
[332508928,1721280093771,-392.60546334,0.00045,45]
[332508929,1721280093798,-249083.71165555,0.00045,30]
[332508930,1721280093823,-50000.0,0.00045,30]
[332508931,1721280093849,-3194.0,0.00045,60]
[332508932,1721280093875,-20031.0,0.00045,120]
[332508933,1721280093907,-268.42518862,0.00045023,30]
[332508934,1721280093933,-150.0,0.00045023,30]
[332508935,1721280093960,-150.0,0.00045023,30]
[332508936,1721280093988,-150.0,0.00045023,30]
[332508937,1721280094015,-150.0,0.00045023,30]
[332508938,1721280094041,-491.06169978,0.00045068,30]
[332508939,1721280094067,-268.42518862,0.0004507,30]
[332508940,1721280094092,-150.0,0.00045073,30]
[332508941,1721280094117,-150.0,0.0004508,30]
[332508942,1721280094142,-150.0,0.00045098,30]
[332508943,1721280094167,-150.0,0.000451,30]
[332508944,1721280094193,-268.42518862,0.00045117,30]
[332508945,1721280094218,-150.0,0.00045138,30]
[332508946,1721280094242,-949.1237,0.0004514,30]
[332508947,1721280094266,-150.0,0.00045148,30]
[332508948,1721280094291,-268.42518862,0.00045164,30]
[332508949,1721280094315,-150.0,0.00045173,30]
[332508950,1721280094340,-150.0,0.00045178,30]
[332508951,1721280094363,-150.0,0.00045195,30]
[332508952,1721280094388,-500.0,0.00045205,120]
[332508953,1721280094412,-500.0,0.00045205,120]
[332508954,1721280094436,-500.0,0.00045205,120]
[332508955,1721280094459,-500.0,0.00045205,120]
[332508956,1721280094482,-500.0,0.00045205,120]
[332508957,1721280094506,-500.0,0.00045205,120]
[332508958,1721280094529,-500.0,0.00045205,120]
[332508959,1721280094553,-500.0,0.00045205,120]
[332508960,1721280094578,-500.0,0.00045205,120]
[332508961,1721280094601,-500.0,0.00045205,120]
[332508962,1721280094624,-600.19175531,0.00045205,120]
[332508963,1721280094653,-1527.99,0.00045205,30]
[332508964,1721280094886,-1827.86337385,0.00045205,30]
[332508965,1721280095943,1875.99402283,0.00045205,30]
[332508966,1721280096023,216.90682787,0.00045205,30]
[332508967,1721280097179,180.42,0.00013842,2]
[332508968,1721280098534,354.47,0.00039726,120]
[332508969,1721280115414,382.05581821,0.0003,30]
[332508970,1721280117636,500.0,0.00041095,60]
[332508971,1721280117885,500.0,0.00041095,60]
[332508972,1721280265355,550.0,0.00013,2]
[332508973,1721280308136,721511.26694749,0.00014,2]
[332508974,1721280315239,870.56030495,0.00013,2]
[332508975,1721280435609,870.56030495,0.00013,2]
[332508976,1721280465543,15456.27194178,0.00013999,2]
[332508977,1721280475540,15456.27194178,0.00013999,2]
[332508978,1721280484389,7500.59650236,0.00013,2]
[332508979,1721280533822,870.56030495,0.00013,2]
[332508987,1721280631769,870.56030495,0.00013,2]
[332508995,1721280632945,-188.35336952,0.00014748,2]
[332508996,1721280632954,-562.57817353,0.00014848,2]
[332508997,1721280632966,-289.42182647,0.00014848,2]
[332508998,1721280632976,-418.66333634,0.000149,2]
[332508999,1721280632988,-401.44091038,0.000149,2]
[332509000,1721280633005,-1336.23099749,0.000149,2]
[332509001,1721280633222,-1729.14467201,0.000149,2]
[332509002,1721280633232,-435.87898828,0.000149,2]
[332509003,1721280633241,-220.77,0.00014904,2]
[332509004,1721280633251,-258.49,0.0001499,2]
[332509005,1721280633261,-258.49,0.0001499,2]
[332509006,1721280633270,-175.78566016,0.0001499,2]
[332509007,1721280633282,-82.70433984,0.0001499,2]
[332509008,1721280633292,-258.49,0.0001499,2]
[332509009,1721280633302,-258.49,0.0001499,2]
[332509010,1721280633311,-300.0,0.00014998,2]
[332509011,1721280633321,-454.47818695,0.00014999,2]
[332509012,1721280633331,-186.26773164,0.00014999,2]
[332509014,1721280633340,-261.92379076,0.00014999,2]
[332509016,1721280633350,-500.0,0.00014999,2]
[332509017,1721280633359,-500.0,0.00014999,2]
[332509018,1721280633368,-254.74283638,0.00014999,2]
[332509019,1721280633378,-500.0,0.00014999,2]
[332509020,1721280633387,-500.0,0.00014999,2]
[332509021,1721280633396,-500.0,0.00014999,2]
[332509022,1721280633405,-500.0,0.00014999,2]
[332509023,1721280633415,-646.49608034,0.00014999,2]
[332509024,1721280633424,-310.0,0.00015,2]
[332509025,1721280633434,-1135.15,0.00015,2]
[332509026,1721280633443,-600.0,0.00015,2]
[332509027,1721280633452,-49908.37252422,0.00015,2]
[332509028,1721280633464,-10267.24643384,0.00015,2]
[332509033,1721280638078,-1309.36905882,0.00015,2]
[332509034,1721280638159,-689.05821815,0.00015,2]
[332509035,1721280638171,-5028.74065588,0.00015,2]
[332509036,1721280638182,-1315.94695395,0.00015,2]
[332509037,1721280638197,-3209.94494954,0.00015,2]
[332509038,1721280638277,-2400.0,0.00015,2]
[332509039,1721280638290,-726.22550044,0.00015,2]
[332509040,1721280638302,-701.89106013,0.00015,2]
[332509041,1721280638314,-720.62291816,0.00015,2]
[332509042,1721280638374,-29499.9995,0.00015,2]
[332509043,1721280638385,-290.95999964,0.00015,2]
[332509073,1721280640370,-2852.92032997,0.00015,2]
[332509075,1721280640380,-7130274.66502234,0.00015,2]
[332509076,1721280640391,-41358.24254163,0.00015,2]
[332509078,1721280640404,-72091.83589408,0.00015,2]
[332509080,1721280640416,-2010.93506105,0.00015,2]
[332509082,1721280640427,-328.47396994,0.00015,2]
[332509084,1721280640451,-1060.86500547,0.00015,2]
[332509087,1721280640483,-7929.398875,0.00015,2]
[332509095,1721280640565,-673.67079095,0.00015,2]
[332509096,1721280640576,-1037.04158645,0.00015,2]
[332509099,1721280640599,-5223.50392506,0.00015,2]
[332509174,1721280643171,-498370.99884072,0.00015,2]
[332509176,1721280643182,-34279.85300064,0.00015,2]
[332509178,1721280643195,-266.72599632,0.00015,2]
[332509183,1721280643234,-831.02728288,0.00015,2]
[332509185,1721280643247,-283155.97633876,0.00015,2]
[332509186,1721280643291,-17792.6952,0.00015,2]
[332509187,1721280643402,-329.7004954,0.00015,2]
[332509188,1721280643418,-1936.85323252,0.00015,2]
[332509189,1721280643473,-935.21484251,0.00015,2]
[332509190,1721280643485,-1901.6000012,0.00015,2]
[332509196,1721280646112,-337.9570748,0.00015,2]
[332509197,1721280646125,-430.0,0.00015,2]
[332509198,1721280646367,-344.333694,0.00015,2]
[332509199,1721280646383,-1004.84499967,0.00015,2]
[332509200,1721280646398,-1351.78790995,0.00015,2]
[332509201,1721280646412,-459.58986104,0.00015,2]
[332509202,1721280646423,-892.54323916,0.00015,2]
[332509203,1721280646437,-13370.82293952,0.00015,2]
[332509205,1721280646448,-9268.83572871,0.00015,2]
[332509206,1721280646459,-39730.35041294,0.00015,2]
[332509207,1721280646472,-4998.0,0.00015,2]
[332509208,1721280646538,-2414.68677028,0.00015,2]
[332509209,1721280646552,-577.64,0.00015,2]
[332509210,1721280646567,-9711.85208415,0.00015,2]
[332509211,1721280646578,-8515.89766504,0.00015,2]
[332509213,1721280646590,-7146.8997323,0.00015,2]
[332509214,1721280647137,-2293.52835284,0.00015,2]
[332509215,1721280647152,-912.85999773,0.00015,2]
[332509216,1721280647171,-1204.12858807,0.00015,2]
[332509217,1721280647182,-4566.43182891,0.00015,2]
[332509218,1721280647201,-607.97134023,0.00015,2]
[332509219,1721280647235,-386.34527195,0.00015,2]
[332509220,1721280647246,-858.99079704,0.00015,2]
[332509221,1721280647257,-1449.50463452,0.00015,2]
[332509222,1721280647268,-1357.51086529,0.00015,2]
[332509223,1721280647279,-1844.02373852,0.00015,2]
[332509224,1721280647290,-1740.31902096,0.00015,2]
[332509225,1721280647301,-507.49219345,0.00015,2]
[332509226,1721280647316,-739.962,0.00015,2]
[332509227,1721280685587,160.64,0.00013107,2]
[332509228,1721280727768,870.56030495,0.00013107,2]
[332509229,1721280814773,870.56030495,0.00013107,2]
[332509230,1721280895783,870.56030495,0.00013107,2]
[332509231,1721280957512,163.09,0.00012206,2]
[332509232,1721281000988,802.53,0.00012895,2]
[332509233,1721281006792,870.56030495,0.00013107,2]
[332509234,1721281128803,870.56030495,0.00013107,2]
[332509235,1721281159015,870.56030495,0.00013107,2]
[332509236,1721281241690,1195.08005924,0.00013999,2]
[332509237,1721281301837,160.64,0.00011448,2]
[332509238,1721281462759,163.09,0.000113,2]
[332509239,1721281512271,155.0,0.00013697,2]
[332509240,1721281602153,762.4,0.00012157,2]
[332509241,1721281613725,150.74278861,0.00013488,2]
[332509242,1721281680939,861.98,0.00013872,2]
[332509243,1721281683580,750.0,0.00013999,2]
[332509244,1721281700814,2404.77,0.00013897,2]
[332509245,1721281707328,250.0,0.00013907,2]
[332509246,1721281741419,23900.0,0.00013907,2]
[332509247,1721281747009,704.42,0.00013921,2]
[332509248,1721281811142,304.23,0.00013925,2]
[332509251,1721281832497,-150.0,0.00014021,2]
[332509252,1721281832509,-250.0,0.00014039,2]
[332509253,1721281832519,-150.24,0.00014221,2]
[332509254,1721281832530,-241.95,0.00014341,2]
[332509255,1721281832541,-626.3496664,0.00014421,2]
[332509256,1721281832553,-136.0503336,0.00014421,2]
[332509257,1721281832563,-113.9496664,0.00014491,2]
[332509258,1721281832788,-886.0503336,0.00014491,2]
[332509259,1721281832798,-400.0,0.000145,5]
[332509260,1721281832808,-299.32017,0.00014521,2]
[332509261,1721281832817,-475.3294964,0.000146,5]